Cogmind - Beta 12 @@@ ROGUE MODE // 2023.09.15 @ 19:49:00 Player: ILikeMonsters1890 Result: Destroyed by D-53 Grenadier with Mini Grenade Launcher Performance ------------- Evolutions (0) 0 Regions Visited (2) 400 Robots Destroyed (26) 130 Value Destroyed (427) 427 Prototype IDs (4) 80 Alien Tech Used (0) 0 Bonus (0) 0 TOTAL SCORE: 1037 Bonus ------- None Cogmind --------- Core Integrity 0/250 Matter 300/300 Energy 94/100 System Corruption 2% Temperature Cool (0) Movement Walking (190) Ox1 Location -10/Mines Parts ------- > --- POWER (1) -------- (None) > --- PROPULSION (2) --- Aluminum Leg > --- UTILITY (2) ------ Medium Storage Unit > --- WEAPON (2) ------- Spread Laser > --- INVENTORY (10) --- Aluminum Leg Aluminum Leg Aluminum Leg Aluminum Leg Medium Storage Unit Light Armor Plating Spread Laser Spread Laser Mini Grenade Launcher Mini Grenade Launcher Peak State ------------ > --- POWER ------------ Light Ion Engine > --- PROPULSION ------- Aluminum Leg Titanium Leg > --- UTILITY ---------- Heat Sink Medium Storage Unit > --- WEAPON ----------- Spread Laser Spread Laser > --- INVENTORY -------- Aluminum Leg Aluminum Leg Aluminum Leg Aluminum Leg Medium Storage Unit Light Armor Plating Spread Laser Spread Laser Mini Grenade Launcher Mini Grenade Launcher [Rating: 12] Favorites ----------- Power Light Ion Engine Engine Light Ion Engine Propulsion Aluminum Leg Leg Aluminum Leg Utility Small Storage Unit Device Heat Sink Storage Small Storage Unit Processor Signal Interpreter Weapon Assault Rifle Energy Gun Spread Laser Ballistic Gun Assault Rifle Build | -11 -10 -10 ------- Run | Jun Mat Min Slots Evolved . | . . . Power . | . . . Propulsion . | . . . Utility . | . . . Weapon . | . . . Parts Attached 15 | 1 13 1 Power 3 | . 3 . Engine 3 | . 3 . Core . | . . . Reactor . | . . . Propulsion 4 | . 3 1 Treads . | . . . Leg 4 | . 3 1 Wheel . | . . . Hover . | . . . Flight . | . . . Utility 4 | 1 3 . Device 2 | 1 1 . Storage 1 | . 1 . Processor 1 | . 1 . Hackware . | . . . Protection . | . . . Artifact . | . . . Weapon 4 | . 4 . Energy Gun 3 | . 3 . Energy Cannon . | . . . Ballistic Gun 1 | . 1 . Ballistic Cannon . | . . . Launcher . | . . . Special Weapon . | . . . Impact Weapon . | . . . Slashing Weapon . | . . . Piercing Weapon . | . . . Special Melee Weapon . | . . . Unidentified Prototypes . | . . . Parts Lost 10 | . 6 4 Power 2 | . 1 1 Propulsion 3 | . 2 1 Utility 2 | . 1 1 Weapon 3 | . 2 1 Highest Loss Streak 4 | . 2 4 To Critical Strikes . | . . . Average Slot Usage (%) 94 | . 93 97 Engine 13 | . 13 13 Leg 27 | . 27 28 Device 5 | . 4 13 Storage 14 | . 14 14 Processor 4 | . 4 . Energy Gun 16 | . 14 27 Ballistic Gun 11 | . 13 . Naked Turns . | . . . Heaviest Build 20 | 13 20 20 Greatest Support 27 | 20 20 27 Greatest Overweight (x) 1 | . . 1 Average Overweight (x) . | . . . Largest Inventory Capacity 10 | 8 10 10 Average Capacity 8 | 8 8 10 Most Carried 10 | 8 10 10 Average Carried 7 | 6 7 9 Final Capacity 10 | 8 10 10 Final Carried 10 | 6 10 10 Class Distribution -------------------- 77% | Mutant 22% | Scavenger-Mutant Dominant Class ---------------- Mutant | -10/Materials Mutant | -10/Mines Resources | -11 -10 -10 ----------- Run | Jun Mat Min Matter Collected 679 | 312 359 8 Remotely . | . . . Salvage Created 744 | 216 528 . Parts 57 | 26 31 . Haulers Intercepted 2 | . 2 . Recyclers Shooed 5 | 1 3 1 Parts Field Recycled . | . . . Retrieved Matter . | . . . Parts Self-Destructed . | . . . Prevented . | . . . Kills | -11 -10 -10 ------- Run | Jun Mat Min Combat Hostiles Destroyed 14 | . 14 . Guns 14 | . 14 . Classes Destroyed 6 | 2 4 . Tunneler 8 | 8 . . Hauler 2 | . 2 . Recycler 1 | 1 . . Watcher 1 | . 1 . Swarmer 6 | . 6 . Grunt 8 | . 8 . Best Kill Streak 4 | 4 4 . Combat Bots Only 4 | . 4 . Max Kills in Single Turn 2 | 1 2 . Gunslinging 1 | . 1 . Exploded . | . . . Melee . | . . . Uniques/NPCs Destroyed . | . . . Combat | -11 -10 -10 -------- Run | Jun Mat Min Damage Taken 1263 | . 705 558 Core 279 | . 95 184 Absorbed by Shields . | . . . Core Remaining (%) 100 | 100 . . Volleys Fired 83 | 17 64 2 Largest 2 | 2 2 2 Hottest 130 | 40 130 130 Shots Fired 160 | 34 122 4 Gun 160 | 34 122 4 Cannon . | . . . Launcher . | . . . Special . | . . . Kinetic 145 | 34 111 . Thermal 15 | . 11 4 Explosive . | . . . Electromagnetic . | . . . Robot Hit Streak 11 | 3 11 5 Robot Miss Streak 7 | 4 7 3 Penetration Max . | . . . Secondary Targets 4 | . 4 . Max Gunslinging Chain 1 | . 1 . Shots Hit Robots 98 | 16 78 4 Core Hits 45 | 9 32 4 Critical Kills . | . . . Critical Parts Destroyed . | . . . Critical Strikes 1 | . 1 . Burn 1 | . 1 . Melee Attacks . | . . . Impact . | . . . Slashing . | . . . Piercing . | . . . Sneak Attacks . | . . . Combat Hostiles . | . . . Follow-up Attacks . | . . . Damage Inflicted 1306 | 215 1029 62 Guns 1243 | 213 974 56 Cannons . | . . . Explosions . | . . . Melee . | . . . Ramming 63 | 2 55 6 Kinetic 1111 | 213 898 . Thermal 132 | . 76 56 Explosive . | . . . Electromagnetic . | . . . Impact . | . . . Slashing . | . . . Piercing . | . . . Highest Corruption 2 | . 2 2 Average Corruption 2 | . 2 2 Corruption Purged . | . . . Corruption Blocked . | . . . Effects 2 | . 1 1 Matter Fused 1 | . 1 . Data Loss (minor) 1 | . . 1 Overload Shots . | . . . Overflow Damage . | . . . Projectiles . | . . . Explosions . | . . . Melee . | . . . Knockbacks . | . . . Impact . | . . . Kinetic . | . . . Secondary . | . . . Self-Inflicted Damage . | . . . Shots . | . . . Rammed . | . . . Targets Rammed 16 | 1 12 3 Kicked 16 | 1 12 3 Crushed . | . . . Highest Temperature 69 | . 69 58 Average Temperature 19 | . 18 35 Received Heat Transfer 306 | . 306 . Siege Activations . | . . . Robots Corrupted . | . . . Combat Hostiles . | . . . Parts Fried . | . . . Impact Corruptions . | . . . Robots Melted . | . . . Combat Hostiles . | . . . Parts Melted 2 | . 2 . Heat Transferred 366 | . 296 70 Parts Sabotaged . | . . . Parts Stolen . | . . . Parts Stripped . | . . . Power Chain Reactions . | . . . Missiles Intercepted . | . . . Alert | -11 -10 -10 ------- Run | Jun Mat Min Peak Influence 384 | 45 384 25 Initial 29 | . 29 25 Average 123 | 26 168 23 Maximum Alert Level 1 | . 1 . Low Security (%) 83 | 100 76 100 Level 1 16 | . 23 . Level 2 . | . . . Level 3 . | . . . Level 4 . | . . . Level 5 . | . . . High Security . | . . . Max Security . | . . . Squads Dispatched 3 | . 3 . Investigation 2 | . 2 . Extermination . | . . . Reinforcement 1 | . 1 . Assault . | . . . Garrison . | . . . Intercept . | . . . Searches Triggered . | . . . Construction Impeded . | . . . Haulers Reinforced . | . . . Active Scanning Responses . | . . . Cargo Convoy Interrupts . | . . . Stealth | -11 -10 -10 --------- Run | Jun Mat Min Distress Signals 3 | . 3 . Communications Jammed . | . . . Distress Signals . | . . . Times Spotted 30 | . 28 2 Peak Tracking Total 8 | . 8 2 Tactical Retreats 1 | . 1 . Traps | -11 -10 -10 ------- Run | Jun Mat Min Traps Triggered 3 | . 3 . Indirectly . | . . . Trap Hack Attempts . | . . . Triggered . | . . . Disarmed . | . . . Reprogrammed . | . . . Reused . | . . . Traps Extracted . | . . . Installed . | . . . Triggered . | . . . Machines | -11 -10 -10 ---------- Run | Jun Mat Min Machines Disabled . | . . . Max in Single Turn . | . . . Machines Repaired . | . . . Machines Sabotaged . | . . . Overloaded Fab Kills . | . . . Hacking | -11 -10 -10 --------- Run | Jun Mat Min Machines Accessed 8 | . 7 1 Terminals 5 | . 5 . Fabricators . | . . . Repair Stations . | . . . Recycling Units 2 | . 2 . Scanalyzers . | . . . Garrison Access . | . . . Total Hacks 21 | . 20 1 Successful 9 | . 8 1 Failed 12 | . 12 . Catastrophic 1 | . 1 . Database Lockouts . | . . . Manual 2 | . 2 . Terminals 17 | . 17 . Fabricators . | . . . Repair Stations . | . . . Recycling Units 3 | . 3 . Scanalyzers . | . . . Garrison Access . | . . . Terminal Hacks 7 | . 6 1 Prototype ID Bank 2 | . 2 . Open Door 1 | . . 1 Locate Traps 1 | . 1 . Hauler Manifests 1 | . 1 . Zone Layout 2 | . 2 . Fabricator Hacks . | . . . Repair Station Hacks . | . . . Recycling Unit Hacks 2 | . 2 . Retrieve Components 2 | . 2 . Scanalyzer . | . . . Garrison Access Hacks . | . . . Unauthorized Hacks . | . . . Terminals . | . . . Fabricators . | . . . Repair Stations . | . . . Recycling Units . | . . . Scanalyzers . | . . . Garrison Access . | . . . Data Cores Recovered . | . . . Used . | . . . Hacking Detections 6 | . 6 . Full Trace Events . | . . . Feedback Events . | . . . Feedback Blocked . | . . . Robot Schematics Acquired . | . . . Robots Built . | . . . Authchips . | . . . Time . | . . . Total Robot Build Rating . | . . . Part Schematics Acquired . | . . . Parts Built . | . . . Authchips . | . . . Time . | . . . Total Part Build Rating . | . . . Parts Repaired . | . . . Time . | . . . Parts Recycled . | . . . Recycled Matter . | . . . Retrieved Matter . | . . . Retrieved Components 12 | . 12 . Parts Scanalyzed . | . . . Part Schematics Acquired . | . . . Parts Damaged . | . . . Bothacking | -11 -10 -10 ------------ Run | Jun Mat Min Used RIF Installer . | . . . Robots Hacked . | . . . Non-combat . | . . . Combat . | . . . Robot Hacks Applied . | . . . Relay Couplers Released . | . . . Fabnet Peak Effective % . | . . . Robots Rewired . | . . . Allies Hacked . | . . . Hacks Repelled . | . . . Allies | -11 -10 -10 -------- Run | Jun Mat Min Total Allies . | . . . Largest Group . | . . . Highest-Rated Group . | . . . Highest-Rated Ally . | . . . Total Orders . | . . . Ally Attacks . | . . . Total Damage . | . . . Kills . | . . . Allies Corrupted . | . . . Allies Melted . | . . . Intel | -11 -10 -10 ------- Run | Jun Mat Min Robot Analysis Total . | . . . Derelict Logs Recovered . | . . . Drone Launches . | . . . Drone Recoveries . | . . . Exploration | -11 -10 -10 ------------- Run | Jun Mat Min Turns Passed 1316 | 249 901 166 Spaces Moved 728 | 59 546 123 Core . | . . . Treads . | . . . Legs 728 | 59 546 123 Wheels . | . . . Hover . | . . . Flight . | . . . Fastest Speed 120 | 120 120 120 Average Speed 120 | 120 120 124 Slowest Speed 190 | 120 120 190 Overloaded Moves . | . . . Propulsion Burnouts . | . . . Robots Hopped . | . . . Cave-ins Triggered . | . . . Exploration Rate (%) 39 | 3 89 26 Regions Visited 2 Branch Regions 1 Pre-discovered Areas . | . . . Known Exits Taken . | . . . Unknown Exits Taken 2 | 1 1 . Scrap Searched 1 | . . 1 Spaces Dug . | . . . Terrain Destroyed . | . . . Melee . | . . . Projectile . | . . . AOE . | . . . Terrain Rammed . | . . . Walls Destroyed . | . . . Machines Disabled . | . . . Actions | -11 -10 -10 --------- Run | Jun Mat Min Total 1017 | 205 680 132 Wait 127 | 118 9 . Move 726 | 58 545 123 Hop . | . . . Pick Up 27 | 5 21 1 Fast Attach 3 | 1 2 . Attach 6 | . 6 . Detach . | . . . Swap 6 | . 5 1 Drop 23 | 5 16 2 Fire 83 | 17 64 2 Melee . | . . . Ram . | . . . Kick 16 | 1 12 3 Crush . | . . . Escape Stasis . | . . . Rewire . | . . . Trap . | . . . Miscellaneous . | . . . Route ------- -11/Junkyard -10/Materials (discovered 4 exits: *Mat x3 / *Min) -10/Mines (discovered 1 exit: *Mat) History --------- Turn | Location | Event 9 | -11/Junkyard | Discovered new exit (range 1) 250 | -11/Junkyard | Entered Materials 304 | -10/Materials | Discovered new exit (range 15) 317 | -10/Materials | Build established: Mutant 612 | -10/Materials | Discovered new exit (range 16) 668 | -10/Materials | Identified exit to Materials 771 | -10/Materials | Discovered exit to Materials (range 16) 1051 | -10/Materials | Discovered exit to Materials (range 16) 1151 | -10/Materials | Entered Mines 1177 | -10/Mines | Discovered exit to Materials (range 13) 1204 | -10/Mines | Met a Derelict who couldn't figure out how to use a Trap Extractor 1277 | -10/Mines | Assembled infested the area 1282 | -10/Mines | Assisted by a Guerilla fighting off Assembled 1304 | -10/Mines | Core integrity fell below 50% 1317 | -10/Mines | Core integrity fell below 20% 1317 | -10/Mines | Destroyed by D-53 Grenadier with Mini Grenade Launcher Last Messages --------------- 01294_ D-53 Grenadier unfolds itself. 01295_ K-01 Serf collects debris. 01303_ Lgt. Ion Engine destroyed. 01304_ The unstable cave ceiling collapses. 01305_ K-01 Serf collects debris. 01307_ The unstable cave ceiling collapses. 01307_ Spread Laser destroyed. 01308_ U-05 Engineer lays Concrete. 01309_ The unstable cave ceiling collapses. 01309_ U-05 Engineer lays Concrete. 01309_ Heat Sink destroyed. 01310_ The unstable cave ceiling collapses. 01310_ K-01 Serf collects debris. 01310_ U-05 Engineer builds a Wall. 01312_ U-05 Engineer lays Concrete. 01313_ Titanium Leg destroyed. 01315_ The unstable cave ceiling collapses. 01315_ K-01 Serf collects debris. 01316_ The unstable cave ceiling collapses. 01316_ U-05 Engineer lays Concrete. Map ----- +----------------------------------------------------+ | ??????????????## ## #??????## ##??????? | | ??????????????# ## #????#### #??????? | | ??????????????# ## #????# #??????? | | ??????????????# ##### < ###### #???????? | | ??????????????# #???## % ##??????? | | ??????????????# #????# *!% ####???? | | ??????????????# ##???# ######## ##??? | | ??????????????##?????# #####?????## #??? | | ?????????????????????# ##???####### #### | | ?????????????????????##????## % | | ???????????????????????##### ############ | | ???????????????????????# #########??????????? | | ??????????????????###### #####??????????????????? | | ??????????????????# #??????????????????????? | | ??????????????????# #??????????????????????? | | ?????????????????## ######??????????????????????? | | ????????????????## # ##????????????????????????? | | ???????????????## u ##???????????????????????? | | ???????????????# td## #???????????????????????? | | ???????????????# d ####?????????????????????? | | ???????????????# # ##????????????????????? | | ????##?????????# #????????????????????? | | ??? ##### ##???????????????????? | | ??? #???????????????????? | | ????????# k #####???????????????? | | ????????######## @ % ????????? | | ???????????????# # [ ????????? | | ???????????????# ?????" ""??????????? | | ???????????????# #### =% ?????????????????? | | ???????????????# ???## ## ???????????????? | | ???????????????# ????##??### ?????????????? | | ??????????????? ??????????? ???????????? | | ??????????????####???????????? k ??????????? | | ??????????????????????????????? ######???????????? | | ??????????????????????????????? #????????????????? | | ????????????????????????????????#????????????????? | | ?????????????????????????????????????????????????? | | ?????????????????????????????????????????????????? | | ?????????????????????????????????????????????????? | | ?????????????????????????????????????????????????? | | ?????????????????????????????????????????????????? | | ?????????????????????????????????????????????????? | | ?????????????????????????????????????????????????? | | ?????????????????????????????????????????????????? | | ?????????????????????????????????????????????????? | | ?????????????????????????????????????????????????? | | ?????????????????????????????????????????????????? | | ?????????????????????????????????????????????????? | | ?????????????????????????????????????????????????? | | ?????????????????????????????????????????????????? | +----------------------------------------------------+ Best States ------------- Heat Dissipation 35 Energy Generation 10 Energy Capacity 125 Matter Stores 300 Matter Capacity 300 Sight Range 16 Terrain Scan Density 10 Evasion (%) 55 Item Schematics ----------------- None Robot Schematics ------------------ None Fabricated ------------ Nothing Alien Tech Used ----------------- None Achievements -------------- None Challenges ------------ None Game ------ Seed CouplerPotentialAmplifier Manual? 0 Play Time 00:11:45 Cumulative 214.1 hours Start 2023.09.15 @ 19:38:58 End 2023.09.15 @ 19:49:00 Sessions 1 Manual Loads 0 Difficulty Rogue Special Mode None Game No. 180 Rogue 180 Adventurer 0 Explorer 0 Win Type - Total 11 Types 8/0/2/1/0/0/0/0/0 Lore% 81 Gallery% 70 Achievement% 58 Wizard Run 0 Options --------- ASCII 0 Keyboard 0 Movement Numpad Keybinds 0 Fullscreen 2 Font 18/Smallcaps Map View 76x50 Tactical HUD 1 Map Filters NONE Filters NONE Steam 1 RUN: 27991843-40d1-481c-aa1f-2e456ee33f24